bitfinex/quotes_ETHUSD_20230105
["timestamp","ask_amount","ask_price","bid_price","bid_amount"]
[1672958757717,20.64274152,1252.7,1252.6,1.0]
[1672958758497,20.64274152,1252.7,1252.6,0.99731631]
[1672958758764,25.58089774,1252.7,1252.6,0.99731631]
[1672958759782,20.64274152,1252.7,1252.6,0.99731631]
[1672958760426,25.58089774,1252.7,1252.6,0.99731631]
[1672958760643,20.64274152,1252.7,1252.6,0.99731631]
[1672958760917,24.82875055,1252.7,1252.6,0.99731631]
[1672958761388,20.64274152,1252.7,1252.6,0.99731631]
[1672958762490,24.82871033,1252.7,1252.6,0.99731631]
[1672958763247,20.64274152,1252.7,1252.6,0.99731631]
[1672958763597,25.58089774,1252.7,1252.6,0.99731631]
[1672958764495,20.64274152,1252.7,1252.6,0.99731631]
[1672958765490,25.58089774,1252.7,1252.6,0.99731631]
[1672958766092,33.56364774,1252.7,1252.6,0.99731631]
[1672958766527,20.64274152,1252.7,1252.6,0.99731631]
[1672958766737,12.65999152,1252.7,1252.6,0.99731631]
[1672958766926,8.862408,1252.7,1252.6,0.99731631]
[1672958767153,16.845158,1252.7,1252.6,0.99731631]
[1672958767364,32.810658,1252.7,1252.6,0.99731631]
[1672958772184,32.860658,1252.7,1252.6,0.99731631]
[1672958772394,32.810658,1252.7,1252.6,0.99731631]
[1672958779307,32.810658,1252.7,1252.6,0.99376146]
[1672958785468,33.56364774,1252.7,1252.6,0.99376146]
[1672958790624,41.54639774,1252.7,1252.6,0.99376146]
[1672958791022,36.60824152,1252.7,1252.6,0.99376146]
[1672958791236,41.55694539,1252.7,1252.6,0.99376146]
[1672958791422,41.55777109,1252.7,1252.6,0.99376146]
[1672958792055,36.60824152,1252.7,1252.6,0.99376146]
[1672958792327,41.55766308,1252.7,1252.6,0.99376146]
[1672958792494,36.60824152,1252.7,1252.6,0.99376146]
[1672958793323,36.60432903,1252.7,1252.6,0.99376146]
[1672958793575,41.55290094,1252.7,1252.6,0.99376146]
[1672958793785,36.60432903,1252.7,1252.6,0.99376146]
[1672958794893,41.55215086,1252.7,1252.6,0.99376146]
[1672958795097,41.55215586,1252.7,1252.6,0.99376146]
[1672958795349,41.55208354,1252.7,1252.6,0.99376146]
[1672958795576,36.60432903,1252.7,1252.6,0.99376146]
[1672958796427,41.55159635,1252.7,1252.6,0.99376146]
[1672958797113,42.53344682,1252.7,1252.6,1.46e-06]
[1672958797283,47.42943322,1252.7,1252.6,1.46e-06]
[1672958797459,52.42943322,1252.7,1252.6,1.46e-06]
[1672958803739,55.42943322,1252.7,1252.6,1.46e-06]
[1672958809906,50.42943322,1252.7,1252.6,1.46e-06]
[1672958810665,55.42943322,1252.7,1252.6,1.46e-06]
[1672958811064,51.13254682,1252.7,1252.6,1.46e-06]
[1672958811271,45.20342903,1252.7,1252.6,1.46e-06]
[1672958811941,50.14439841,1252.7,1252.6,1.46e-06]
[1672958818781,0.00355781,1252.6,1252.3,8.0216192]
[1672958818929,3.58605357,1252.4,1252.3,8.0216192]
[1672958819306,11.57071357,1252.4,1252.3,0.1413192]
[1672958819516,11.57071357,1252.4,1252.3,0.0423192]
[1672958820831,19.55537357,1252.4,1252.3,0.0423192]
[1672958821498,8.05003,1252.5,1252.3,0.0423192]
[1672958821499,19.62067357,1252.5,1252.3,0.0423192]
[1672958821712,27.53926357,1252.5,1252.3,0.0423192]
[1672958822153,2.9885573,1252.4,1252.3,0.0423192]
[1672958822455,3.58605357,1252.4,1252.3,0.0423192]
[1672958822666,11.57071357,1252.4,1252.3,0.0423192]
[1672958823031,3.58605357,1252.4,1252.3,0.0423192]
[1672958823447,3.58605357,1252.4,1252.3,8.0276192]
[1672958823670,3.58605357,1252.4,1252.3,8.1266192]
[1672958824587,3.58605357,1252.4,1252.3,16.1119192]
[1672958824717,3.58338778,1252.4,1252.3,16.1119192]
[1672958825720,3.58338778,1252.4,1252.3,0.1413192]
[1672958825878,3.58338778,1252.4,1252.3,0.0423192]
[1672958826722,3.58338778,1252.4,1252.3,8.0276192]
[1672958827041,3.58338778,1252.4,1252.3,8.1266192]
[1672958827677,3.58338778,1252.4,1252.3,0.1413192]
[1672958827885,3.58338778,1252.4,1252.3,0.0423192]
[1672958828131,3.58338778,1252.4,1252.3,8.0276192]
[1672958828324,3.58338778,1252.4,1252.3,8.1266192]
[1672958830048,3.58338778,1252.4,1252.3,0.1413192]
[1672958830262,3.58338778,1252.4,1252.3,0.0423192]
[1672958832259,11.56804778,1252.4,1252.3,0.0423192]
[1672958833138,23.95398,1252.4,1252.3,0.0423192]
[1672958833397,27.5432327,1252.4,1252.3,0.0423192]
[1672958834026,27.54023016,1252.4,1252.3,0.0423192]
[1672958834420,23.95097746,1252.4,1252.3,0.0423192]
[1672958834859,28.13470663,1252.4,1252.3,0.0423192]
[1672958837464,27.54070544,1252.4,1252.3,0.0423192]
[1672958837705,23.95097746,1252.4,1252.3,0.0423192]
[1672958838084,28.13470663,1252.4,1252.3,0.0423192]
[1672958838720,23.95097746,1252.4,1252.3,0.0423192]
[1672958839087,28.13470663,1252.4,1252.3,0.0423192]
[1672958839256,23.95097746,1252.4,1252.3,0.0423192]
[1672958840101,28.13470663,1252.4,1252.3,0.0423192]
[1672958844117,2.5,1252.3,1252.2,10.7208192]
[1672958844328,11.57412921,1252.3,1252.2,10.7208192]
[1672958844539,11.57412921,1252.3,1252.2,0.099]
[1672958844875,11.57412921,1252.3,1252.1,15.65459]
[1672958845094,11.57412921,1252.3,1252.1,19.64373951]
[1672958845321,2.99068584,1252.2,1252.1,19.64373951]
[1672958845626,11.64012921,1252.3,1252.1,19.64373951]
[1672958845859,11.57412921,1252.3,1252.1,12.07453951]
[1672958846215,3.58882921,1252.2,1252.1,0.099]
[1672958846423,11.57477921,1252.2,1252.0,27.6354649]
[1672958846640,11.57477921,1252.2,1252.0,31.62461441]
[1672958846641,2.98997079,1252.1,1252.0,31.62461441]
[1672958846848,2.98997079,1252.1,1252.0,42.59877812]
[1672958847674,2.98997079,1252.1,1252.0,34.61191812]
[1672958847891,5.3814122,1252.1,1252.0,34.61191812]
[1672958849475,5.3814122,1252.1,1252.0,18.17884632]
[1672958849476,10.97655079,1252.1,1252.0,18.17884632]
[1672958850122,18.96313079,1252.1,1252.0,18.17884632]
[1672958850304,18.96313079,1252.1,1252.0,18.07884632]
[1672958851138,18.96313079,1252.1,1252.0,1.08969681]
[1672958851494,27.54856921,1252.1,1252.0,0.99069681]
[1672958851828,31.52721382,1252.1,1252.0,0.99069681]
[1672958854835,32.12661382,1252.1,1252.0,0.99069681]
[1672958858690,32.17661382,1252.1,1252.0,0.99069681]
[1672958858983,32.12661382,1252.1,1252.0,0.99069681]
[1672958859151,32.72151378,1252.1,1252.0,0.99069681]
[1672958859367,28.53778461,1252.1,1252.0,0.99069681]
[1672958860416,32.73896557,1252.1,1252.0,0.99069681]
[1672958860615,32.72151378,1252.1,1252.0,0.99069681]
[1672958861136,32.11568077,1252.1,1252.0,0.99069681]
[1672958867984,40.10226077,1252.1,1252.0,0.99069681]
[1672958870847,36.52436461,1252.1,1252.0,0.99069681]
[1672958871063,40.10100621,1252.1,1252.0,0.99069681]
[1672958872091,36.52436461,1252.1,1252.0,0.99069681]
[1672958872269,40.10098015,1252.1,1252.0,0.99069681]
[1672958872685,36.52436461,1252.1,1252.0,0.99069681]
[1672958873015,41.52436461,1252.1,1252.0,0.99069681]
[1672958873225,45.70809378,1252.1,1252.0,0.99069681]
[1672958873662,45.70809378,1252.1,1252.0,0.98776761]
[1672958876635,41.52436461,1252.1,1252.0,0.98776761]
[1672958876846,45.70809378,1252.1,1252.0,0.98776761]
[1672958879214,40.70809378,1252.1,1252.0,0.98776761]
[1672958880037,45.70809378,1252.1,1252.0,0.98776761]
[1672958883303,40.92496461,1252.1,1252.0,0.98776761]
[1672958883688,45.101254,1252.1,1252.0,0.98776761]
[1672958885592,40.92496461,1252.1,1252.0,0.98776761]
[1672958886514,40.9214747,1252.1,1252.0,0.98776761]
[1672958886762,49.11279179,1252.1,1252.0,0.98776761]
[1672958886952,49.85159359,1252.1,1252.0,0.98776761]
[1672958887705,44.85159359,1252.1,1252.0,0.98776761]
[1672958888766,49.85159359,1252.1,1252.0,0.98776761]
[1672958893866,54.05415825,1252.1,1252.0,0.98776761]
[1672958894072,50.839742,1252.1,1252.0,0.98776761]
[1672958896974,55.04293789,1252.1,1252.0,0.98776761]
[1672958897315,55.64233789,1252.1,1252.0,0.98776761]
[1672958899534,55.64233789,1252.1,1252.0,7.61e-06]
[1672958899748,58.64233789,1252.1,1252.0,7.61e-06]
[1672958901323,58.87233789,1252.1,1252.0,7.61e-06]
[1672958905999,52.9432201,1252.1,1252.0,7.61e-06]
[1672958907633,58.87103146,1252.1,1252.0,7.61e-06]
[1672958908949,52.9432201,1252.1,1252.0,7.61e-06]
[1672958913241,58.86907766,1252.1,1252.0,7.61e-06]
[1672958915714,2.5,1252.0,1251.9,0.09861536]
[1672958915882,27.66520198,1252.0,1251.9,0.09861536]
[1672958916083,59.61408198,1252.0,1251.9,0.09861536]
[1672958919647,59.61627967,1252.0,1251.9,0.09861536]
[1672958925236,54.61627967,1252.0,1251.9,0.09861536]
[1672958927311,59.61627967,1252.0,1251.9,0.09861536]
[1672958927756,59.61627967,1252.0,1251.9,5.36e-06]
[1672958930761,68.01227967,1252.0,1251.9,5.36e-06]
[1672958931392,62.08651089,1252.0,1251.9,5.36e-06]
[1672958934506,62.08851089,1252.0,1251.9,5.36e-06]
[1672958934651,62.08651089,1252.0,1251.9,5.36e-06]
[1672958936865,57.08651089,1252.0,1251.9,5.36e-06]
[1672958937078,61.87451089,1252.0,1251.9,5.36e-06]
[1672958937440,66.87451089,1252.0,1251.9,5.36e-06]
[1672958941492,66.87451089,1252.0,1251.8,0.18586475]
[1672958941742,13.49299747,1251.9,1251.8,0.18586475]
[1672958941954,52.18174838,1251.9,1251.8,0.18586475]
[1672958943540,60.36574838,1251.9,1251.8,0.18586475]
[1672958944070,65.36574838,1251.9,1251.8,0.18586475]
[1672958955107,61.09190042,1251.9,1251.8,0.18586475]
[1672958955494,67.01915022,1251.9,1251.8,0.18586475]
[1672958955908,67.0196601,1251.9,1251.8,0.18586475]
[1672958956124,61.09190042,1251.9,1251.8,0.18586475]
[1672958956755,67.02002169,1251.9,1251.8,0.18586475]
[1672958956966,61.09190042,1251.9,1251.8,0.18586475]
[1672958957154,67.01987833,1251.9,1251.8,0.18586475]
[1672958957901,71.29372629,1251.9,1251.8,0.18586475]
[1672958958114,67.01987833,1251.9,1251.8,0.18586475]
[1672958960467,58.62387833,1251.9,1251.8,0.18586475]
[1672958960844,53.83587833,1251.9,1251.8,0.18586475]
[1672958965882,53.83587833,1251.9,1251.8,0.18283892]
[1672958966744,54.50598673,1251.9,1251.8,0.18283892]
[1672958969508,48.57800882,1251.9,1251.8,0.18283892]
[1672958969874,49.17750882,1251.9,1251.8,0.18283892]
[1672958970042,55.10879412,1251.9,1251.8,0.18283892]
[1672958970258,49.17950882,1251.9,1251.8,0.18283892]
[1672958970444,55.10878882,1251.9,1251.8,0.18283892]
[1672958970636,49.17750882,1251.9,1251.8,0.18283892]
[1672958973560,44.17750882,1251.9,1251.8,0.18283892]
[1672958974514,49.17750882,1251.9,1251.8,0.18283892]
[1672958983548,44.17750882,1251.9,1251.8,0.18283892]
[1672958984547,49.17750882,1251.9,1251.8,0.18283892]
[1672958986335,49.17750882,1251.9,1251.8,0.17974777]
[1672958990489,44.17750882,1251.9,1251.8,0.17974777]
[1672958991546,49.17750882,1251.9,1251.8,0.17974777]
[1672958994543,53.41425499,1251.9,1251.8,0.17974777]
[1672958994748,49.17750882,1251.9,1251.8,0.17974777]
[1672959001330,44.17750882,1251.9,1251.8,0.17974777]
[1672959002185,49.17750882,1251.9,1251.8,0.17974777]
[1672959007573,55.112882,1251.9,1251.8,0.17974777]
[1672959007887,54.513382,1251.9,1251.8,0.17974777]
[1672959008287,48.57800882,1251.9,1251.8,0.17759465]
[1672959012278,43.57800882,1251.9,1251.8,0.17759465]
[1672959013225,48.57800882,1251.9,1251.8,0.17759465]
[1672959014418,65.99517227,1251.9,1251.8,0.17759465]
[1672959014629,66.59467227,1251.9,1251.8,0.17759465]
[1672959014957,62.35837044,1251.9,1251.8,0.17759465]
[1672959017150,66.59847377,1251.9,1251.8,0.17759465]
[1672959018460,62.35837044,1251.9,1251.8,0.17759465]
[1672959019152,66.59852481,1251.9,1251.8,0.17759465]
[1672959021356,62.35837044,1251.9,1251.8,0.17759465]
[1672959022183,57.35837044,1251.9,1251.8,0.17759465]
[1672959023270,66.59851746,1251.9,1251.8,0.17759465]
[1672959023490,65.99901746,1251.9,1251.8,0.14013068]
[1672959026174,66.59851746,1251.9,1251.8,0.14013068]
[1672959029480,2.0,1251.8,1251.7,0.95999682]
[1672959029696,50.15175412,1251.8,1251.7,0.95999682]
[1672959032860,50.15375412,1251.8,1251.7,0.95999682]
[1672959033087,50.15395181,1251.8,1251.7,0.95999682]
[1672959033596,54.08733211,1251.8,1251.7,0.95999682]
[1672959033804,45.1086875,1251.8,1251.7,0.95999682]
[1672959034141,50.1086875,1251.8,1251.7,0.95999682]
[1672959034994,50.7082875,1251.8,1251.7,0.95999682]
[1672959039408,44.7749072,1251.8,1251.7,0.95999682]
[1672959040692,50.70788471,1251.8,1251.7,0.95999682]
[1672959040909,56.83346505,1251.8,1251.7,0.95999682]
[1672959041052,50.90048754,1251.8,1251.7,0.95999682]
[1672959045325,50.30088754,1251.8,1251.7,0.95999682]
[1672959048224,45.30088754,1251.8,1251.7,0.95999682]
[1672959049433,50.30088754,1251.8,1251.7,0.95999682]
[1672959052324,50.30088754,1251.8,1251.7,0.95633461]
[1672959058634,48.24883534,1251.8,1251.7,0.95633461]
[1672959058841,43.24883534,1251.8,1251.7,0.95633461]
[1672959059080,50.30088754,1251.8,1251.7,0.95633461]
[1672959059252,42.31239754,1251.8,1251.7,0.95633461]
[1672959060557,50.30088754,1251.8,1251.7,0.95633461]
[1672959060774,42.31239754,1251.8,1251.7,0.95633461]
[1672959061490,50.30088754,1251.8,1251.7,0.95633461]
[1672959062733,56.23732534,1251.8,1251.7,0.95633461]
[1672959064287,48.24883534,1251.8,1251.7,0.95633461]
[1672959064497,56.23732534,1251.8,1251.7,0.95633461]
[1672959065978,56.82632647,1251.8,1251.7,0.95633461]
[1672959066181,50.88988867,1251.8,1251.7,0.95633461]
[1672959066385,36.77581833,1251.8,1251.7,0.95633461]
[1672959066652,36.54362064,1251.8,1251.7,0.95633461]
[1672959066864,41.48825973,1251.8,1251.7,0.95633461]
[1672959067443,41.48444069,1251.8,1251.7,0.95633461]
[1672959068522,36.48444069,1251.8,1251.7,0.95633461]
[1672959069195,31.5398016,1251.8,1251.7,0.95633461]
[1672959069344,36.5398016,1251.8,1251.7,0.95633461]
[1672959069560,41.48337529,1251.8,1251.7,0.95633461]
[1672959070502,49.47186529,1251.8,1251.7,0.95633461]
[1672959070713,41.48337529,1251.8,1251.7,0.95633461]
[1672959073762,49.47186529,1251.8,1251.7,0.95633461]
[1672959074443,41.48337529,1251.8,1251.7,0.95633461]
[1672959075552,36.48337529,1251.8,1251.7,0.95633461]
[1672959076536,41.48337529,1251.8,1251.7,0.95633461]
[1672959078014,49.47186529,1251.8,1251.7,0.95633461]
[1672959078607,41.48337529,1251.8,1251.7,0.95633461]
[1672959079465,49.47186529,1251.8,1251.7,0.95633461]
[1672959079872,41.48337529,1251.8,1251.7,0.95633461]
[1672959080827,49.47186529,1251.8,1251.7,0.95633461]
[1672959081039,44.5282916,1251.8,1251.7,0.95633461]
[1672959081227,54.58439709,1251.8,1251.7,0.95633461]
[1672959081438,49.64153431,1251.8,1251.7,0.95633461]
[1672959082544,44.64153431,1251.8,1251.7,0.95633461]
[1672959082912,36.65304431,1251.8,1251.7,0.95633461]
[1672959083543,41.65304431,1251.8,1251.7,0.95633461]
[1672959084210,49.64153431,1251.8,1251.7,0.95633461]
[1672959084544,41.65304431,1251.8,1251.7,0.95633461]
[1672959086056,49.64153431,1251.8,1251.7,0.95633461]
[1672959086325,56.17757211,1251.8,1251.7,0.95633461]
[1672959088745,50.24113431,1251.8,1251.7,0.95633461]
[1672959088960,56.17757211,1251.8,1251.7,0.95633461]
[1672959089270,56.17757211,1251.8,1251.7,0.95345224]
[1672959092367,51.17757211,1251.8,1251.7,0.95345224]
[1672959093439,56.17757211,1251.8,1251.7,0.95345224]
[1672959097993,48.18908211,1251.8,1251.7,0.95345224]
[1672959099103,56.17757211,1251.8,1251.7,0.95345224]
[1672959099316,51.17757211,1251.8,1251.7,0.95345224]
[1672959100448,56.17757211,1251.8,1251.7,0.95345224]
[1672959103874,55.57797211,1251.8,1251.7,0.95345224]
[1672959105077,55.57521883,1251.8,1251.7,0.95345224]
[1672959106374,50.57521883,1251.8,1251.7,0.95345224]
[1672959107496,55.57521883,1251.8,1251.7,0.95345224]
[1672959107810,38.49150671,1251.8,1251.7,0.95345224]
[1672959108497,33.49150671,1251.8,1251.7,0.95345224]
[1672959109240,9.52603671,1251.8,1251.7,0.95345224]
[1672959109389,8.76633392,1251.8,1251.7,0.95345224]
[1672959109617,8.76633392,1251.8,1251.7,8.94258224]
[1672959109849,8.76633392,1251.8,1251.7,9.04158224]
[1672959110399,8.76633392,1251.8,1251.7,1.05245224]
[1672959110555,4.77718441,1251.8,1251.7,0.95345224]
[1672959110760,4.77718441,1251.8,1251.7,12.56984706]
[1672959111016,4.77718441,1251.8,1251.7,12.66884706]
[1672959111507,4.77718441,1251.8,1251.7,4.67971706]
[1672959111711,4.77718441,1251.8,1251.7,4.58071706]
[1672959111927,12.76567441,1251.8,1251.7,4.58071706]
[1672959112187,20.75416441,1251.8,1251.7,4.58071706]
[1672959112548,12.76567441,1251.8,1251.7,4.58071706]
[1672959113283,4.77718441,1251.8,1251.7,4.58071706]
[1672959113768,4.77718441,1251.8,1251.7,12.56984706]
[1672959113979,4.77718441,1251.8,1251.7,20.65797706]
[1672959114131,4.77718441,1251.8,1251.7,12.66884706]
[1672959115940,4.77718441,1251.8,1251.7,4.67971706]
[1672959116291,4.77718441,1251.8,1251.7,12.56984706]
[1672959116511,4.77718441,1251.8,1251.7,12.66884706]
[1672959118181,4.77718441,1251.8,1251.7,4.67971706]
[1672959118395,28.74265441,1251.8,1251.7,0.90345224]
[1672959120162,20.75416441,1251.8,1251.7,0.90345224]
[1672959120352,28.74265441,1251.8,1251.7,0.90345224]
[1672959120547,12.76567441,1251.8,1251.7,0.90345224]
[1672959120756,28.74265441,1251.8,1251.7,0.90345224]
[1672959121964,12.76567441,1251.8,1251.7,0.90345224]
[1672959123068,20.75416441,1251.8,1251.7,0.90345224]
[1672959123339,28.74265441,1251.8,1251.7,0.90345224]
[1672959128661,20.75416441,1251.8,1251.7,0.90345224]
[1672959128872,12.76567441,1251.8,1251.7,0.90345224]
[1672959129846,20.75416441,1251.8,1251.7,0.90345224]
[1672959130812,28.74265441,1251.8,1251.7,0.90345224]
[1672959133432,20.75416441,1251.8,1251.7,0.90345224]
[1672959133628,4.77718441,1251.8,1251.7,0.90345224]
[1672959134046,12.76567441,1251.8,1251.7,0.90345224]
[1672959135242,4.77718441,1251.8,1251.7,0.90345224]
[1672959135396,12.76567441,1251.8,1251.7,0.90345224]
[1672959135600,20.75416441,1251.8,1251.7,0.90345224]
[1672959136015,20.75416441,1251.8,1251.7,3.72678706]
[1672959136016,12.76567441,1251.8,1251.7,3.72678706]
[1672959136247,3.57677871,1251.8,1251.7,11.71591706]
[1672959136464,4.17432151,1251.8,1251.7,3.82578706]
[1672959136773,0.58900113,1251.8,1251.7,3.72678706]
[1672959136989,4.17432151,1251.8,1251.7,3.72678706]
[1672959138482,4.17432151,1251.8,1251.7,3.72433513]
[1672959143158,12.16281151,1251.8,1251.7,3.72433513]
[1672959143374,4.17432151,1251.8,1251.7,3.72433513]
[1672959143584,12.16281151,1251.8,1251.7,3.72433513]
[1672959145156,4.17432151,1251.8,1251.7,11.71346513]
[1672959145368,4.17432151,1251.8,1251.7,11.81246513]
[1672959145851,4.17432151,1251.8,1251.7,3.82333513]
[1672959146012,4.17432151,1251.8,1251.7,3.72433513]
[1672959147447,12.16281151,1251.8,1251.7,3.72433513]
[1672959147758,4.17432151,1251.8,1251.7,3.72433513]
[1672959148116,12.16281151,1251.8,1251.7,3.72433513]
[1672959154785,20.15130151,1251.8,1251.7,3.72433513]
[1672959156441,12.16281151,1251.8,1251.7,3.72433513]
[1672959156654,4.17432151,1251.8,1251.7,11.71346513]
[1672959156885,4.17432151,1251.8,1251.7,19.80159513]
[1672959157113,4.17432151,1251.8,1251.7,11.81246513]
[1672959157683,4.17432151,1251.8,1251.7,19.80159513]
[1672959158462,4.17432151,1251.8,1251.7,27.79072513]
[1672959160150,4.17432151,1251.8,1251.7,11.81246513]
[1672959161778,4.17432151,1251.8,1251.7,3.82116718]
[1672959161942,4.17432151,1251.8,1251.7,11.71129718]
[1672959162154,4.17432151,1251.8,1251.7,11.81029718]
[1672959163517,4.17432151,1251.8,1251.7,19.79942718]
[1672959164553,4.17432151,1251.8,1251.7,11.81029718]
[1672959164807,4.17432151,1251.8,1251.7,19.79942718]
[1672959165546,4.17432151,1251.8,1251.7,27.78855718]
[1672959167195,4.17432151,1251.8,1251.7,19.79942718]
[1672959167459,4.17432151,1251.8,1251.7,11.81029718]
[1672959168793,4.17432151,1251.8,1251.7,19.79942718]
[1672959170285,4.17432151,1251.8,1251.7,8.98696236]
[1672959170508,4.17432151,1251.8,1251.7,0.99783236]
[1672959170718,12.16281151,1251.8,1251.7,0.89883236]
[1672959173139,8.57749113,1251.8,1251.7,0.89883236]
[1672959173274,12.16691429,1251.8,1251.7,0.89883236]
[1672959173485,8.57749113,1251.8,1251.7,0.89883236]
[1672959174232,12.76567441,1251.8,1251.7,0.89883236]
[1672959175055,4.77718441,1251.8,1251.7,0.89883236]
[1672959176525,12.76567441,1251.8,1251.7,0.89883236]
[1672959177186,4.77718441,1251.8,1251.7,0.89883236]
[1672959184172,12.76567441,1251.8,1251.7,0.89883236]
[1672959185641,12.76567441,1251.8,1251.7,0.89640863]
[1672959189615,20.75416441,1251.8,1251.7,0.89640863]
[1672959191822,28.74265441,1251.8,1251.7,0.89640863]
[1672959192026,32.91710246,1251.8,1251.7,0.89640863]
[1672959204590,32.96710246,1251.8,1251.7,0.89640863]
[1672959204800,32.91710246,1251.8,1251.7,0.89640863]
[1672959205477,28.72891918,1251.8,1251.7,0.89640863]
[1672959205944,29.32851918,1251.8,1251.7,0.89640863]
[1672959206882,33.51401059,1251.8,1251.7,0.89640863]
[1672959207060,32.91441059,1251.8,1251.7,0.89640863]
[1672959207472,32.91451461,1251.8,1251.7,0.89640863]
[1672959207688,28.72891918,1251.8,1251.7,0.89640863]
[1672959208740,33.67680525,1251.8,1251.7,0.89640863]
[1672959209628,28.72891918,1251.8,1251.7,0.89640863]
[1672959209841,28.72891918,1251.8,1251.7,0.89325391]
[1672959212092,32.91514969,1251.8,1251.7,0.89325391]
[1672959214244,28.72891918,1251.8,1251.7,0.89325391]
[1672959214886,28.77891918,1251.8,1251.7,0.89325391]
[1672959215045,28.72891918,1251.8,1251.7,0.89325391]
[1672959215417,33.67680525,1251.8,1251.7,0.89325391]
[1672959215584,32.91614884,1251.8,1251.7,0.89325391]
[1672959216089,28.72891918,1251.8,1251.7,0.89325391]
[1672959216302,33.67680525,1251.8,1251.7,0.89325391]
[1672959231541,33.67680525,1251.8,1251.7,0.89023092]
[1672959233397,33.72680525,1251.8,1251.7,0.89023092]
[1672959233613,33.67680525,1251.8,1251.7,0.89023092]
[1672959234600,41.66529525,1251.8,1251.7,0.89023092]
[1672959235590,41.66729525,1251.8,1251.7,0.89023092]
[1672959235805,41.66529525,1251.8,1251.7,0.89023092]
[1672959237476,41.71529525,1251.8,1251.7,0.89023092]
[1672959237688,41.66529525,1251.8,1251.7,0.89023092]
[1672959238748,41.6618527,1251.8,1251.7,0.89023092]
[1672959239533,33.6733627,1251.8,1251.7,0.89023092]
[1672959240957,41.6618527,1251.8,1251.7,0.89023092]
[1672959241615,41.7118527,1251.8,1251.7,0.89023092]
[1672959241840,41.6618527,1251.8,1251.7,0.89023092]
[1672959243637,33.6733627,1251.8,1251.7,0.89023092]
[1672959243970,41.6618527,1251.8,1251.7,0.89023092]
[1672959246665,42.2614527,1251.8,1251.7,0.89023092]
[1672959248039,34.2729627,1251.8,1251.7,0.89023092]
[1672959248860,42.2614527,1251.8,1251.7,0.89023092]
[1672959249843,34.2729627,1251.8,1251.7,0.89023092]
[1672959252530,42.2614527,1251.8,1251.7,0.89023092]
[1672959253041,34.2729627,1251.8,1251.7,0.89023092]
[1672959255511,42.2614527,1251.8,1251.7,0.89023092]
[1672959256211,34.2729627,1251.8,1251.7,0.89023092]
[1672959256995,42.2614527,1251.8,1251.7,0.89023092]
[1672959257360,34.2729627,1251.8,1251.7,0.89023092]
[1672959258158,42.2614527,1251.8,1251.7,0.89023092]
[1672959260301,34.2729627,1251.8,1251.7,0.89023092]
[1672959260512,30.09851465,1251.8,1251.7,0.89023092]
[1672959261253,25.15062858,1251.8,1251.7,0.89023092]
[1672959263727,25.15062858,1251.8,1251.7,0.88792242]
[1672959263882,29.33800985,1251.8,1251.7,0.88792242]
[1672959264255,29.33811094,1251.8,1251.7,0.88792242]
[1672959264736,29.33803582,1251.8,1251.7,0.88792242]
[1672959266676,29.34003582,1251.8,1251.7,0.88792242]
[1672959266819,33.57228578,1251.8,1251.7,0.88792242]
[1672959267274,32.97268578,1251.8,1251.7,0.88792242]
[1672959268351,28.73843582,1251.8,1251.7,0.88792242]
[1672959277546,36.72692582,1251.8,1251.7,0.88792242]
[1672959277986,28.73843582,1251.8,1251.7,0.88792242]
[1672959278338,36.72692582,1251.8,1251.7,0.88792242]
[1672959281390,28.73843582,1251.8,1251.7,0.88792242]
[1672959281707,36.72692582,1251.8,1251.7,0.88792242]
[1672959283504,28.73843582,1251.8,1251.7,0.88792242]
[1672959283718,36.72692582,1251.8,1251.7,0.88792242]
[1672959284452,28.73843582,1251.8,1251.7,0.88792242]
[1672959285288,36.72692582,1251.8,1251.7,0.88792242]
[1672959287256,40.96117678,1251.8,1251.7,0.88518233]
[1672959287764,32.97268678,1251.8,1251.7,0.88518233]
[1672959291878,28.78527954,1251.8,1251.7,0.88518233]
[1672959293010,41.72165561,1251.8,1251.7,0.88518233]
[1672959294494,40.76291905,1251.8,1251.7,0.88518233]
[1672959294921,45.7068949,1251.8,1251.7,0.88518233]
[1672959295145,37.7184049,1251.8,1251.7,0.88518233]
[1672959296476,45.7068949,1251.8,1251.7,0.88518233]
[1672959300428,37.7184049,1251.8,1251.7,0.88518233]
[1672959301564,45.7068949,1251.8,1251.7,0.88518233]
[1672959301772,37.7184049,1251.8,1251.7,0.88518233]
[1672959303350,45.7068949,1251.8,1251.7,0.88518233]
[1672959309189,37.7184049,1251.8,1251.7,0.88518233]
[1672959311023,45.7068949,1251.8,1251.7,0.88197915]
[1672959313270,37.7184049,1251.8,1251.7,0.88197915]
[1672959313650,32.77442905,1251.8,1251.7,0.88197915]
[1672959314696,45.7068949,1251.8,1251.7,0.88197915]
[1672959315539,37.7184049,1251.8,1251.7,0.88197915]
[1672959316017,45.7068949,1251.8,1251.7,0.88197915]
[1672959316386,37.7184049,1251.8,1251.7,0.88197915]
[1672959317427,37.71459055,1251.8,1251.7,0.88197915]
[1672959319273,45.70308055,1251.8,1251.7,0.88197915]
[1672959320378,37.71459055,1251.8,1251.7,0.88197915]
[1672959321425,45.70308055,1251.8,1251.7,0.88197915]
[1672959321691,37.71459055,1251.8,1251.7,0.88197915]
[1672959322054,45.70308055,1251.8,1251.7,0.88197915]
[1672959324424,37.71459055,1251.8,1251.7,0.88197915]
[1672959325430,45.70308055,1251.8,1251.7,0.88197915]
[1672959326468,37.71459055,1251.8,1251.7,0.88197915]
[1672959327089,45.70308055,1251.8,1251.7,0.88197915]
[1672959327993,37.71459055,1251.8,1251.7,0.88197915]
[1672959328593,45.70308055,1251.8,1251.7,0.88197915]
[1672959328804,46.30268055,1251.8,1251.7,0.88197915]
[1672959329243,46.30468055,1251.8,1251.7,0.88197915]
[1672959329449,41.3587047,1251.8,1251.7,0.88197915]
[1672959329677,33.3702147,1251.8,1251.7,0.88197915]
[1672959329888,38.31603103,1251.8,1251.7,0.88197915]
[1672959330435,33.3702147,1251.8,1251.7,0.88197915]
[1672959330599,41.3587047,1251.8,1251.7,0.88197915]
[1672959330997,33.3702147,1251.8,1251.7,0.88197915]
[1672959332081,38.31700747,1251.8,1251.7,0.88197915]
[1672959335394,41.3587047,1251.8,1251.7,0.88197915]
[1672959335559,38.3178582,1251.8,1251.7,0.88197915]
[1672959335786,33.3702147,1251.8,1251.7,0.88197915]
[1672959336538,32.7706147,1251.8,1251.7,0.88197915]
[1672959336972,38.7070525,1251.8,1251.7,0.88197915]
[1672959337339,32.7706147,1251.8,1251.7,0.88197915]
[1672959337574,37.71812717,1251.8,1251.7,0.88197915]
[1672959337926,37.71815411,1251.8,1251.7,0.88197915]
[1672959338135,32.7706147,1251.8,1251.7,0.88197915]
[1672959338552,40.7591047,1251.8,1251.7,0.88197915]
[1672959339339,46.6955425,1251.8,1251.7,0.88197915]
[1672959339767,38.7070525,1251.8,1251.7,0.88197915]
[1672959341606,32.7706147,1251.8,1251.7,0.88197915]
[1672959342343,32.7706147,1251.8,1251.7,0.87800165]
[1672959343608,37.71798109,1251.8,1251.7,0.87800165]
[1672959344389,45.70647109,1251.8,1251.7,0.87800165]
[1672959345782,37.71798109,1251.8,1251.7,0.87800165]
[1672959346009,45.70647109,1251.8,1251.7,0.87800165]
[1672959346954,40.7591047,1251.8,1251.7,0.87800165]
[1672959347220,45.70674348,1251.8,1251.7,0.87800165]